fUST/lending_fUST_20250531
["ID","MTS","AMOUNT","RATE_DAILY","PERIOD"]
[363308920,1748668199627,430.0,0.00017819,2]
[363308921,1748668202389,198.0,0.0001782,2]
[363308922,1748668203203,425.6,0.00021918,60]
[363308923,1748668206970,430.0,0.00016995,2]
[363308924,1748668206998,430.0,0.00016996,2]
[363308925,1748668207225,430.0,0.0001727,2]
[363308926,1748668207255,204.98,0.00017269,2]
[363308927,1748668207476,430.0,0.00017544,2]
[363308928,1748668208127,430.0,0.00017818,2]
[363308929,1748668212769,430.0,0.00016996,2]
[363308930,1748668213019,430.0,0.0001727,2]
[363308931,1748668218579,430.0,0.00016998,2]
[363308932,1748668218843,430.0,0.00017272,2]
[363308933,1748668219101,430.0,0.00017546,2]
[363308934,1748668219341,430.0,0.0001782,2]
[363308935,1748668221600,430.0,0.00016998,2]
[363308936,1748668221869,430.0,0.00017272,2]
[363308937,1748668222149,430.0,0.00017546,2]
[363308938,1748668222421,430.0,0.0001782,2]
[363308939,1748668224064,665.09,0.00016998,2]
[363308940,1748668224314,665.09,0.00017272,2]
[363308941,1748668224583,665.09,0.00017546,2]
[363308942,1748668224960,665.09,0.0001782,2]
[363308943,1748668227812,1114.7,0.00017689,2]
[363308944,1748668227873,336.41,0.00016997,2]
[363308945,1748668230712,200.0,0.00024201,120]
[363308970,1748668232074,430.0,0.00016998,2]
[363308971,1748668232323,-500.0,0.00017821,2]
[363308972,1748668232333,-430.0,0.00017821,2]
[363308973,1748668232343,-430.0,0.00017821,2]
[363308974,1748668232354,-171.7,0.00017821,2]
[363308975,1748668232364,-430.0,0.00017821,2]
[363308976,1748668232374,-500.0,0.00017821,2]
[363308977,1748668232384,-430.0,0.00017821,2]
[363308978,1748668232395,-156.03,0.00017821,2]
[363308979,1748668232405,-430.0,0.00017821,2]
[363308980,1748668232416,-430.0,0.00017821,2]
[363308981,1748668232427,-430.0,0.00017821,2]
[363308982,1748668232437,-430.0,0.00017821,2]
[363308983,1748668232447,-430.0,0.00017821,2]
[363308984,1748668232458,-770.14,0.00017821,2]
[363308985,1748668232468,-430.0,0.00017821,2]
[363308986,1748668232479,-430.0,0.00017821,2]
[363308987,1748668232491,-501.57709233,0.00017824,2]
[363308988,1748668232502,-500.0,0.0001786,2]
[363308989,1748668232513,-304.55430849,0.00017988,2]
[363308990,1748668232522,-1000.0,0.00018,2]
[363308991,1748668232532,-430.0,0.00018091,2]
[363308992,1748668232541,-430.0,0.00018091,2]
[363308993,1748668232551,-1475.63,0.00018092,2]
[363308994,1748668232561,-430.0,0.00018092,2]
[363308995,1748668232574,-192.6235388,0.00018092,2]
[363308996,1748668232584,-1595.88,0.00018092,2]
[363308997,1748668232593,-495.48,0.00018092,2]
[363308998,1748668232603,-606.84,0.00018092,2]
[363308999,1748668232612,-2064.51,0.00018092,2]
[363309000,1748668232621,-430.0,0.00018092,2]
[363309001,1748668232631,-910.53,0.00018092,2]
[363309002,1748668232643,-875.57,0.00018092,2]
[363309003,1748668232653,-430.0,0.00018092,2]
[363309004,1748668232662,-430.0,0.00018093,2]
[363309005,1748668232672,-430.0,0.00018093,2]
[363309006,1748668232682,-430.0,0.00018093,2]
[363309007,1748668232691,-430.0,0.00018093,2]
[363309008,1748668232701,-430.0,0.00018093,2]
[363309009,1748668232711,-430.0,0.00018093,2]
[363309010,1748668232721,-430.0,0.00018093,2]
[363309011,1748668232730,-430.0,0.00018093,2]
[363309012,1748668232740,-430.0,0.00018093,2]
[363309013,1748668232750,-430.0,0.00018093,2]
[363309014,1748668232759,-430.0,0.00018094,2]
[363309015,1748668232769,-430.0,0.00018094,2]
[363309016,1748668232779,-222.28,0.00018094,2]
[363309017,1748668232788,-430.0,0.00018094,2]
[363309018,1748668232798,-888.24,0.00018094,2]
[363309019,1748668232807,-430.0,0.00018094,2]
[363309020,1748668232819,-430.0,0.00018094,2]
[363309021,1748668232829,-430.0,0.00018094,2]
[363309022,1748668232838,-545.23,0.00018094,2]
[363309023,1748668232848,-430.0,0.00018094,2]
[363309024,1748668232858,-430.0,0.00018094,2]
[363309025,1748668232867,-940.68,0.00018094,2]
[363309026,1748668232877,-430.0,0.00018094,2]
[363309027,1748668232886,-201.42,0.00018094,2]
[363309028,1748668232896,-430.0,0.00018094,2]
[363309029,1748668232905,-7370.66,0.00018094,2]
[363309030,1748668232915,-430.0,0.00018094,2]
[363309031,1748668232924,-430.0,0.00018094,2]
[363309032,1748668232934,-430.0,0.00018094,2]
[363309033,1748668232943,-665.09,0.00018094,2]
[363309034,1748668232952,-430.0,0.00018095,2]
[363309035,1748668232962,-430.0,0.00018095,2]
[363309036,1748668232971,-500.35979412,0.00018095,2]
[363309037,1748668232981,-500.0,0.00018095,2]
[363309038,1748668232990,-430.0,0.00018095,2]
[363309039,1748668233000,-435.5,0.00018095,2]
[363309040,1748668233009,-430.0,0.00018095,2]
[363309041,1748668233019,-430.0,0.00018095,2]
[363309042,1748668233029,-430.0,0.00018095,2]
[363309043,1748668233043,-430.0,0.00018095,2]
[363309044,1748668233053,-770.14,0.00018095,2]
[363309045,1748668233063,-430.0,0.00018095,2]
[363309046,1748668233073,-430.0,0.00018095,2]
[363309047,1748668233081,-160.0,0.0001813,2]
[363309048,1748668233090,-430.0,0.00018131,2]
[363309049,1748668233099,-326.19704284,0.00018131,2]
[363309050,1748668233109,-459.2179497,0.00018131,2]
[363309051,1748668233121,-377.36217386,0.00018131,2]
[363309052,1748668233131,-800.0,0.00018164,2]
[363309053,1748668233141,-500.0,0.0001823,2]
[363309054,1748668233151,-408.42900786,0.00018248,2]
[363309055,1748668233160,-1000.0,0.00018309,2]
[363309056,1748668233170,-2000.0,0.00018309,2]
[363309057,1748668233179,-540.46819077,0.00018313,2]
[363309058,1748668233189,-430.0,0.00018365,2]
[363309059,1748668233199,-430.0,0.00018365,2]
[363309060,1748668233208,-1475.63,0.00018366,2]
[363309061,1748668233218,-430.0,0.00018366,2]
[363309062,1748668233227,-1595.88,0.00018366,2]
[363309063,1748668233237,-606.84,0.00018366,2]
[363309064,1748668233247,-2064.51,0.00018366,2]
[363309065,1748668233257,-430.0,0.00018366,2]
[363309066,1748668233267,-910.53,0.00018366,2]
[363309067,1748668233278,-875.57,0.00018366,2]
[363309068,1748668233288,-430.0,0.00018366,2]
[363309069,1748668233297,-408.6366197,0.00018366,2]
[363309070,1748668233307,-500.0,0.00018366,2]
[363309071,1748668233317,-430.0,0.00018367,2]
[363309072,1748668233327,-268.19901486,0.00018367,2]
[363309073,1748668233337,-430.0,0.00018367,2]
[363309074,1748668233347,-430.0,0.00018367,2]
[363309075,1748668233357,-430.0,0.00018367,2]
[363309076,1748668233367,-427.41324943,0.00018367,2]
[363309077,1748668233377,-430.0,0.00018367,2]
[363309078,1748668233386,-430.0,0.00018367,2]
[363309079,1748668233396,-242.78,0.00018367,2]
[363309080,1748668233406,-430.0,0.00018367,2]
[363309081,1748668233416,-228.43,0.00018368,2]
[363309082,1748668233426,-430.0,0.00018368,2]
[363309083,1748668233435,-430.0,0.00018368,2]
[363309084,1748668233445,-888.24,0.00018368,2]
[363309085,1748668233455,-430.0,0.00018368,2]
[363309086,1748668233465,-430.0,0.00018368,2]
[363309087,1748668233475,-430.0,0.00018368,2]
[363309088,1748668233485,-545.23,0.00018368,2]
[363309089,1748668233494,-430.0,0.00018368,2]
[363309090,1748668233504,-940.68,0.00018368,2]
[363309091,1748668233514,-430.0,0.00018368,2]
[363309092,1748668233524,-430.0,0.00018368,2]
[363309093,1748668233534,-7370.66,0.00018368,2]
[363309094,1748668233544,-430.0,0.00018368,2]
[363309095,1748668233554,-430.0,0.00018368,2]
[363309096,1748668233563,-665.09,0.00018368,2]
[363309097,1748668233574,-480.71021645,0.00018369,2]
[363309098,1748668233587,-430.0,0.00018369,2]
[363309099,1748668233597,-430.0,0.00018369,2]
[363309100,1748668233612,-430.0,0.00018369,2]
[363309101,1748668233622,-430.0,0.00018369,2]
[363309102,1748668233644,-430.0,0.00018369,2]
[363309103,1748668233657,-430.0,0.00018369,2]
[363309104,1748668233667,-770.14,0.00018369,2]
[363309105,1748668233676,-430.0,0.00018369,2]
[363309106,1748668233696,-166.42314775,0.00018369,2]
[363309107,1748668233707,-1306.08035507,0.0001838,2]
[363309108,1748668233718,-407.41348155,0.00018405,2]
[363309109,1748668233728,-1000.0,0.00018408,2]
[363309110,1748668233758,-151.79859603,0.00018441,2]
[363309111,1748668233778,-500.0,0.00018441,2]
[363309112,1748668233792,-500.0,0.00018441,2]
[363309113,1748668233809,-500.0,0.00018468,2]
[363309114,1748668233823,-500.0,0.00018468,2]
[363309115,1748668233834,-500.0,0.00018496,2]
[363309116,1748668233854,-501.51378654,0.00018496,2]
[363309117,1748668233886,-500.0,0.00018523,2]
[363309118,1748668233900,-500.0,0.00018551,2]
[363309119,1748668233916,-420.0,0.00018562,2]
[363309120,1748668233929,-500.0,0.00018578,2]
[363309121,1748668233945,-500.0,0.00018605,2]
[363309122,1748668233957,-500.0,0.00018633,2]
[363309123,1748668233968,-430.0,0.00018639,2]
[363309124,1748668233985,-1475.63,0.0001864,2]
[363309125,1748668234008,-430.0,0.0001864,2]
[363309126,1748668234019,-1595.88,0.0001864,2]
[363309127,1748668234029,-606.84,0.0001864,2]
[363309128,1748668234040,-2064.51,0.0001864,2]
[363309129,1748668234050,-430.0,0.0001864,2]
[363309130,1748668234060,-910.53,0.0001864,2]
[363309131,1748668234070,-875.57,0.0001864,2]
[363309132,1748668234081,-430.0,0.0001864,2]
[363309133,1748668234092,-430.0,0.00018641,2]
[363309134,1748668234102,-430.0,0.00018641,2]
[363309135,1748668234112,-430.0,0.00018641,2]
[363309136,1748668234124,-430.0,0.00018641,2]
[363309137,1748668234134,-430.0,0.00018641,2]
[363309138,1748668234144,-338.38,0.00018641,2]
[363309139,1748668234154,-430.0,0.00018641,2]
[363309140,1748668234163,-430.0,0.00018642,2]
[363309141,1748668234173,-430.0,0.00018642,2]
[363309142,1748668234182,-888.24,0.00018642,2]
[363309143,1748668234192,-430.0,0.00018642,2]
[363309144,1748668234202,-430.0,0.00018642,2]
[363309145,1748668234212,-430.0,0.00018642,2]
[363309146,1748668234222,-545.23,0.00018642,2]
[363309147,1748668234232,-430.0,0.00018642,2]
[363309148,1748668234241,-940.68,0.00018642,2]
[363309149,1748668234251,-430.0,0.00018642,2]
[363309150,1748668234260,-430.0,0.00018642,2]
[363309151,1748668234269,-7370.66,0.00018642,2]
[363309152,1748668234278,-430.0,0.00018642,2]
[363309153,1748668234288,-430.0,0.00018642,2]
[363309154,1748668234297,-665.09,0.00018642,2]
[363309155,1748668234307,-430.0,0.00018643,2]
[363309156,1748668234316,-430.0,0.00018643,2]
[363309157,1748668234328,-430.0,0.00018643,2]
[363309158,1748668234338,-430.0,0.00018643,2]
[363309159,1748668234348,-430.0,0.00018643,2]
[363309160,1748668234358,-430.0,0.00018643,2]
[363309161,1748668234370,-770.14,0.00018643,2]
[363309162,1748668234380,-430.0,0.00018643,2]
[363309163,1748668234392,-500.0,0.0001866,2]
[363309164,1748668234402,-500.0,0.00018688,2]
[363309165,1748668234412,-155.0,0.00018696,2]
[363309166,1748668234423,-500.0,0.00018715,2]
[363309167,1748668234432,-275.43614523,0.00018742,2]
[363309168,1748668234442,-160.0,0.00018791,2]
[363309169,1748668234452,-160.0,0.00018791,2]
[363309170,1748668234461,-1000.0,0.000188,2]
[363309171,1748668234471,-1500.0,0.00018857,2]
[363309172,1748668234480,-3000.0,0.00018857,2]
[363309173,1748668234490,-1135.62031279,0.000189,2]
[363309174,1748668234499,-430.0,0.00018913,2]
[363309175,1748668234509,-1475.63,0.00018914,2]
[363309176,1748668234518,-430.0,0.00018914,2]
[363309177,1748668234528,-1595.88,0.00018914,2]
[363309178,1748668234538,-606.84,0.00018914,2]
[363309179,1748668234548,-2064.51,0.00018914,2]
[363309180,1748668234558,-910.53,0.00018914,2]
[363309181,1748668234568,-875.57,0.00018914,2]
[363309182,1748668234579,-430.0,0.00018914,2]
[363309183,1748668234588,-430.0,0.00018915,2]
[363309184,1748668234598,-430.0,0.00018915,2]
[363309185,1748668234607,-888.24,0.00018916,2]
[363309186,1748668234617,-430.0,0.00018916,2]
[363309187,1748668234627,-430.0,0.00018916,2]
[363309188,1748668234636,-545.23,0.00018916,2]
[363309189,1748668234645,-430.0,0.00018916,2]
[363309190,1748668234654,-940.68,0.00018916,2]
[363309191,1748668234664,-430.0,0.00018916,2]
[363309192,1748668234673,-430.0,0.00018916,2]
[363309193,1748668234682,-7370.66,0.00018916,2]
[363309194,1748668234692,-430.0,0.00018916,2]
[363309195,1748668234701,-430.0,0.00018916,2]
[363309196,1748668234710,-665.09,0.00018916,2]
[363309197,1748668234719,-430.0,0.00018917,2]
[363309198,1748668234729,-430.0,0.00018917,2]
[363309199,1748668234738,-430.0,0.00018917,2]
[363309200,1748668234748,-430.0,0.00018917,2]
[363309201,1748668234757,-430.0,0.00018917,2]
[363309202,1748668234766,-770.14,0.00018917,2]
[363309203,1748668234775,-430.0,0.00018917,2]
[363309204,1748668234784,-502.00492019,0.00018956,2]
[363309205,1748668234794,-423.4608169,0.00019054,2]
[363309206,1748668234803,-842.5625,0.00019054,2]
[363309207,1748668234812,-229.3428821,0.00019054,2]
[363309208,1748668234824,-160.0,0.00019054,2]
[363309209,1748668234833,-212.77096907,0.00019054,2]
[363309210,1748668234843,-160.0,0.00019054,2]
[363309211,1748668234854,-12664.98044988,0.00019055,2]
[363309212,1748668234863,-304.55430849,0.00019078,2]
[363309213,1748668234873,-430.0,0.00019178,2]
[363309214,1748668234882,-430.0,0.00019178,2]
[363309215,1748668234892,-456.7367056,0.00019178,2]
[363309216,1748668234901,-500.0,0.00019178,2]
[363309217,1748668234911,-500.0,0.00019178,2]
[363309218,1748668234920,-500.0,0.00019178,2]
[363309219,1748668234929,-151.0,0.00019178,2]
[363309220,1748668234938,-383.84753,0.00019178,2]
[363309221,1748668234948,-257.4958639,0.00019187,2]
[363309222,1748668234958,-1475.63,0.00019188,2]
[363309223,1748668234968,-430.0,0.00019188,2]
[363309224,1748668234978,-1595.88,0.00019188,2]
[363309225,1748668234987,-606.84,0.00019188,2]
[363309226,1748668234997,-2064.51,0.00019188,2]
[363309227,1748668235006,-910.53,0.00019188,2]
[363309228,1748668235016,-875.57,0.00019188,2]
[363309229,1748668235026,-430.0,0.00019188,2]
[363309230,1748668235035,-430.0,0.00019189,2]
[363309231,1748668235047,-888.24,0.0001919,2]
[363309232,1748668235056,-430.0,0.0001919,2]
[363309233,1748668235066,-545.23,0.0001919,2]
[363309234,1748668235078,-430.0,0.0001919,2]
[363309235,1748668235088,-940.68,0.0001919,2]
[363309236,1748668235098,-430.0,0.0001919,2]
[363309237,1748668235108,-7370.66,0.0001919,2]
[363309238,1748668235117,-430.0,0.0001919,2]
[363309239,1748668235127,-430.0,0.0001919,2]
[363309240,1748668235136,-665.09,0.0001919,2]
[363309241,1748668235146,-430.0,0.00019191,2]
[363309242,1748668235155,-430.0,0.00019191,2]
[363309243,1748668235164,-430.0,0.00019191,2]
[363309244,1748668235175,-430.0,0.00019191,2]
[363309245,1748668235184,-430.0,0.00019191,2]
[363309246,1748668235193,-770.14,0.00019191,2]
[363309247,1748668235202,-401.67463228,0.00019191,2]
[363309248,1748668235211,-1625.24,0.000192,2]
[363309249,1748668235221,-291.33931411,0.00019233,2]
[363309250,1748668235230,-800.0,0.0001926,2]
[363309251,1748668235239,-536.93518509,0.00019405,2]
[363309252,1748668235248,-4000.0,0.00019405,2]
[363309253,1748668235257,-1475.63,0.00019462,2]
[363309254,1748668235266,-257.23,0.00019462,2]
[363309255,1748668235275,-1595.88,0.00019462,2]
[363309256,1748668235285,-606.84,0.00019462,2]
[363309257,1748668235294,-2064.51,0.00019462,2]
[363309258,1748668235304,-910.53,0.00019462,2]
[363309259,1748668235314,-875.57,0.00019462,2]
[363309260,1748668235325,-430.0,0.00019462,2]
[363309261,1748668235334,-430.0,0.00019463,2]
[363309262,1748668235343,-888.24,0.00019464,2]
[363309263,1748668235354,-430.0,0.00019464,2]
[363309264,1748668235364,-545.23,0.00019464,2]
[363309265,1748668235373,-430.0,0.00019464,2]
[363309266,1748668235383,-940.68,0.00019464,2]
[363309267,1748668235392,-430.0,0.00019464,2]
[363309268,1748668235401,-7370.66,0.00019464,2]
[363309269,1748668235411,-430.0,0.00019464,2]
[363309270,1748668235420,-430.0,0.00019464,2]
[363309271,1748668235430,-665.09,0.00019464,2]
[363309272,1748668235440,-430.0,0.00019465,2]
[363309273,1748668235450,-430.0,0.00019465,2]
[363309274,1748668235460,-430.0,0.00019465,2]
[363309275,1748668235469,-430.0,0.00019465,2]
[363309276,1748668235479,-770.14,0.00019465,2]
[363309277,1748668235488,-1475.63,0.00019736,2]
[363309278,1748668235497,-1595.88,0.00019736,2]
[363309279,1748668235507,-606.84,0.00019736,2]
[363309280,1748668235517,-2064.51,0.00019736,2]
[363309281,1748668235527,-910.53,0.00019736,2]
[363309282,1748668235536,-875.57,0.00019736,2]
[363309283,1748668235546,-526.15819155,0.00019736,2]
[363309284,1748668235556,-430.0,0.00019737,2]
[363309285,1748668235565,-888.24,0.00019738,2]
[363309286,1748668235576,-430.0,0.00019738,2]
[363309287,1748668235689,-545.23,0.00019738,2]
[363309288,1748668235714,-430.0,0.00019738,2]
[363309289,1748668235724,-940.68,0.00019738,2]
[363309290,1748668235733,-430.0,0.00019738,2]
[363309291,1748668235743,-7370.66,0.00019738,2]
[363309292,1748668235753,-430.0,0.00019738,2]
[363309293,1748668235763,-430.0,0.00019738,2]
[363309294,1748668235773,-665.09,0.00019738,2]
[363309295,1748668235782,-430.0,0.00019739,2]
[363309296,1748668235792,-430.0,0.00019739,2]
[363309297,1748668235802,-230.07704568,0.00019739,2]
[363309298,1748668235811,-459.92054578,0.00019739,2]
[363309299,1748668235821,-770.14,0.00019739,2]
[363309300,1748668235831,-599.7721329,0.00019836,2]
[363309301,1748668235840,-151.0,0.000199,2]
[363309302,1748668235849,-713.914,0.00019942,2]
[363309303,1748668235859,-4222.61924346,0.00019952,2]
[363309304,1748668235868,-4189.0,0.0002,2]
[363309305,1748668235878,-250.0,0.0002,30]
[363309306,1748668235888,-7162.0,0.0002,10]
[363309307,1748668235898,-300.0,0.0002,2]
[363309308,1748668235907,-599.7721329,0.00020001,2]
[363309309,1748668235917,-1475.63,0.0002001,2]
[363309310,1748668235926,-1595.88,0.0002001,2]
[363309311,1748668235936,-606.84,0.0002001,2]
[363309312,1748668235946,-2064.51,0.0002001,2]
[363309313,1748668235956,-910.53,0.0002001,2]
[363309314,1748668235965,-875.57,0.0002001,2]
[363309315,1748668235975,-430.0,0.00020011,2]
[363309316,1748668235984,-888.24,0.00020012,2]
[363309317,1748668235994,-545.23,0.00020012,2]
[363309318,1748668236003,-430.0,0.00020012,2]
[363309319,1748668236012,-940.68,0.00020012,2]
[363309320,1748668236022,-430.0,0.00020012,2]
[363309321,1748668236031,-7370.66,0.00020012,2]
[363309322,1748668236044,-430.0,0.00020012,2]
[363309323,1748668236054,-430.0,0.00020012,2]
[363309324,1748668236063,-665.09,0.00020012,2]
[363309325,1748668236072,-430.0,0.00020013,2]
[363309326,1748668236083,-430.0,0.00020013,2]
[363309327,1748668236092,-770.14,0.00020013,2]
[363309328,1748668236102,-304.55430849,0.00020167,2]
[363309329,1748668236111,-228.64373306,0.00020274,3]
[363309330,1748668236121,-587.0,0.00020274,2]
[363309331,1748668236131,-1475.63,0.00020284,2]
[363309332,1748668236141,-1595.88,0.00020284,2]
[363309333,1748668236151,-606.84,0.00020284,2]
[363309334,1748668236160,-2064.51,0.00020284,2]
[363309335,1748668236169,-910.53,0.00020284,2]
[363309336,1748668236179,-875.57,0.00020284,2]
[363309337,1748668236188,-430.0,0.00020285,2]
[363309338,1748668236197,-888.24,0.00020286,2]
[363309339,1748668236207,-545.23,0.00020286,2]
[363309340,1748668236216,-430.0,0.00020286,2]
[363309341,1748668236225,-940.68,0.00020286,2]
[363309342,1748668236234,-244.45,0.00020286,2]
[363309343,1748668236243,-7370.66,0.00020286,2]
[363309344,1748668236251,-430.0,0.00020286,2]
[363309345,1748668236259,-430.0,0.00020286,2]
[363309346,1748668236269,-665.09,0.00020286,2]
[363309347,1748668236279,-430.0,0.00020287,2]
[363309348,1748668236287,-430.0,0.00020287,2]
[363309349,1748668236295,-770.14,0.00020287,2]
[363309350,1748668236306,-151.0,0.000203,4]
[363309351,1748668236314,-800.0,0.00020356,2]
[363309352,1748668236325,-599.7721329,0.00020527,2]
[363309353,1748668236335,-1475.63,0.00020558,2]
[363309354,1748668236344,-1595.88,0.00020558,2]
[363309355,1748668236354,-606.84,0.00020558,2]
[363309356,1748668236363,-2064.51,0.00020558,2]
[363309357,1748668236374,-910.53,0.00020558,2]
[363309358,1748668236383,-875.57,0.00020558,2]
[363309359,1748668236392,-430.0,0.00020559,2]
[363309360,1748668236402,-888.24,0.0002056,2]
[363309361,1748668236411,-545.23,0.0002056,2]
[363309362,1748668236421,-430.0,0.0002056,2]
[363309363,1748668236431,-940.68,0.0002056,2]
[363309364,1748668236440,-7370.66,0.0002056,2]
[363309365,1748668236449,-430.0,0.0002056,2]
[363309366,1748668236459,-430.0,0.0002056,2]
[363309367,1748668236468,-665.09,0.0002056,2]
[363309368,1748668236477,-430.0,0.00020561,2]
[363309369,1748668236486,-430.0,0.00020561,2]
[363309370,1748668236496,-770.14,0.00020561,2]
[363309371,1748668236505,-599.7721329,0.00020572,2]
[363309372,1748668236514,-151.0,0.000207,4]
[363309373,1748668236523,-151.0,0.00020731,2]
[363309374,1748668236532,-151.47158686,0.00020731,2]
[363309375,1748668236542,-300.0,0.00020731,2]
[363309376,1748668236551,-300.0,0.00020731,2]
[363309377,1748668236561,-300.0,0.00020731,2]
[363309378,1748668236570,-300.0,0.00020731,2]
[363309379,1748668236580,-207.4,0.00020731,2]
[363309380,1748668236589,-300.0,0.00020731,2]
[363309381,1748668236598,-300.0,0.00020731,2]
[363309382,1748668236607,-332.79567003,0.00020731,2]
[363309383,1748668236616,-5000.0,0.00020731,2]
[363309384,1748668236625,-579.81183216,0.00020731,2]
[363309385,1748668236634,-500.93515612,0.00020736,2]
[363309386,1748668236643,-500.0,0.00020736,2]
[363309387,1748668236652,-500.0,0.00020736,2]
[363309388,1748668236661,-399.17394173,0.00020736,2]
[363309389,1748668236671,-2228.0,0.00020794,2]
[363309390,1748668236681,-708.0,0.00020794,2]
[363309391,1748668236692,-405.0,0.00020794,2]
[363309392,1748668236701,-1475.63,0.00020832,2]
[363309393,1748668236710,-1595.88,0.00020832,2]
[363309394,1748668236719,-606.84,0.00020832,2]
[363309395,1748668236729,-2064.51,0.00020832,2]
[363309396,1748668236738,-910.53,0.00020832,2]
[363309397,1748668236747,-875.57,0.00020832,2]
[363309398,1748668236756,-430.0,0.00020833,2]
[363309399,1748668236765,-888.24,0.00020834,2]
[363309400,1748668236775,-545.23,0.00020834,2]
[363309401,1748668236784,-430.0,0.00020834,2]
[363309402,1748668236793,-940.68,0.00020834,2]
[363309403,1748668236802,-7370.66,0.00020834,2]
[363309404,1748668236812,-430.0,0.00020834,2]
[363309405,1748668236823,-430.0,0.00020834,2]
[363309406,1748668236832,-665.09,0.00020834,2]
[363309407,1748668236842,-430.0,0.00020835,2]
[363309408,1748668236851,-770.14,0.00020835,2]
[363309409,1748668236861,-157.5499743,0.00020877,2]
[363309410,1748668236870,-2200.0,0.00020953,2]
[363309411,1748668236879,-5000.0,0.00021,2]
[363309412,1748668236888,-3000.0,0.00021,2]
[363309413,1748668236898,-3000.0,0.0002101,2]
[363309414,1748668236908,-37336.90467591,0.00021019,2]
[363309415,1748668237028,-1758.29695784,0.00021019,2]
[363309416,1748668237062,-500.0,0.00019178,2]
[363309417,1748668237072,-500.0,0.00019178,2]
[363309418,1748668237082,-115.51770175,0.00021019,2]
[363309419,1748668237094,-849.27394424,0.00021019,2]
[363309420,1748668237147,430.0,0.00017272,2]
[363309421,1748668237296,430.0,0.00017546,2]
[363309422,1748668237384,430.0,0.0001782,2]
[363309432,1748668237756,430.0,0.00016995,2]
[363309439,1748668237885,-430.0,0.00018094,2]
[363309441,1748668237895,-500.0,0.00018366,2]
[363309443,1748668237904,-500.0,0.00018366,2]
[363309445,1748668237914,-500.0,0.00018366,2]
[363309447,1748668237923,-557.69814465,0.00018366,2]
[363309449,1748668237932,-363.92,0.00018368,2]
[363309451,1748668237941,-340.28522142,0.00019178,2]
[363309452,1748668237951,-500.0,0.00019178,2]
[363309453,1748668237960,-500.0,0.00019178,2]
[363309454,1748668237969,-500.0,0.00019178,2]
[363309455,1748668237979,-500.0,0.00019178,2]
[363309456,1748668237989,-500.0,0.00019178,2]
[363309457,1748668237998,-56825.51009026,0.00021019,2]
[363309458,1748668238008,-3000.0,0.0002102,2]
[363309459,1748668238017,-3000.0,0.0002103,2]
[363309460,1748668238027,-3000.0,0.0002104,2]
[363309461,1748668238037,-3000.0,0.0002105,2]
[363309462,1748668238051,-3000.0,0.0002106,2]
[363309463,1748668238061,-3000.0,0.0002107,2]
[363309464,1748668238070,-3000.0,0.0002108,2]